fUSD/lending_fUSD_20240329
["ID","MTS","AMOUNT","RATE_DAILY","PERIOD"]
[321009146,1711743089939,-500.0,0.00053424,120]
[321009147,1711743089954,-283.54,0.00053424,120]
[321009148,1711743089963,-500.0,0.00053424,120]
[321009149,1711743089972,-421.65,0.00053424,120]
[321009150,1711743089982,-500.0,0.00053424,120]
[321009151,1711743089992,-150.0,0.00053424,2]
[321009152,1711743090001,-533.32,0.00053424,120]
[321009153,1711743090010,-500.0,0.00053424,30]
[321009154,1711743090019,-500.0,0.00053424,120]
[321009155,1711743090029,-500.0,0.00053424,120]
[321009156,1711743090037,-893.03,0.00053424,120]
[321009157,1711743090046,-500.0,0.00053424,120]
[321009158,1711743090055,-500.0,0.00053424,120]
[321009159,1711743090064,-383.67594031,0.00053424,120]
[321009160,1711743090073,-500.0,0.00053424,120]
[321009161,1711743090083,-500.0,0.00053424,120]
[321009162,1711743090092,-317.97459373,0.00053424,120]
[321009163,1711743090101,-500.0,0.00053424,120]
[321009164,1711743090110,-500.0,0.00053424,120]
[321009165,1711743090120,-446.05,0.00053424,120]
[321009166,1711743090129,-500.0,0.00053424,120]
[321009167,1711743090138,-343.75351248,0.00053424,120]
[321009168,1711743090147,-500.0,0.00053424,120]
[321009169,1711743090156,-500.0,0.00053424,120]
[321009170,1711743090165,-532.21,0.00053424,120]
[321009171,1711743090174,-553.00579299,0.00053424,120]
[321009172,1711743090183,-721.19,0.00053424,120]
[321009173,1711743090193,-500.0,0.00053424,120]
[321009174,1711743090202,-500.0,0.00053424,120]
[321009175,1711743090212,-500.0,0.00053424,120]
[321009176,1711743090220,-500.0,0.00053424,120]
[321009177,1711743090230,-500.0,0.00053424,120]
[321009178,1711743090239,-585.96,0.00053424,120]
[321009179,1711743090248,-500.0,0.00053424,120]
[321009180,1711743090257,-500.0,0.00053424,120]
[321009181,1711743090266,-500.0,0.00053424,120]
[321009182,1711743090276,-500.0,0.00053424,120]
[321009183,1711743090285,-500.0,0.00053424,120]
[321009184,1711743090293,-500.0,0.00053424,120]
[321009185,1711743090302,-257.41494359,0.00053424,120]
[321009186,1711743090311,-500.0,0.00053424,120]
[321009187,1711743090319,-548.85,0.00053424,120]
[321009188,1711743090328,-500.0,0.00053424,120]
[321009189,1711743090337,-500.0,0.00053424,120]
[321009190,1711743090346,-500.0,0.00053424,120]
[321009191,1711743090355,-412.18,0.00053424,120]
[321009192,1711743090365,-500.0,0.00053424,120]
[321009193,1711743090374,-500.0,0.00053424,120]
[321009194,1711743090383,-500.0,0.00053424,120]
[321009195,1711743090392,-361.34,0.00053424,120]
[321009196,1711743090402,-500.0,0.00053424,120]
[321009197,1711743090410,-500.0,0.00053424,120]
[321009198,1711743090419,-536.31,0.00053424,120]
[321009199,1711743090428,-657.03,0.00053424,120]
[321009200,1711743090437,-500.0,0.00053424,120]
[321009201,1711743090446,-500.0,0.00053424,120]
[321009202,1711743090456,-500.0,0.00053424,120]
[321009203,1711743090465,-500.0,0.00053424,120]
[321009204,1711743090474,-500.0,0.00053424,120]
[321009205,1711743090483,-500.0,0.00053424,120]
[321009206,1711743090492,-619.71,0.00053424,120]
[321009207,1711743090501,-500.0,0.00053424,2]
[321009208,1711743090510,-500.0,0.00053424,120]
[321009209,1711743090519,-500.0,0.00053424,120]
[321009210,1711743090529,-202.66,0.00053424,120]
[321009211,1711743090538,-596.83,0.00053424,120]
[321009212,1711743090547,-531.52786161,0.00053424,120]
[321009213,1711743090557,-500.0,0.00053424,120]
[321009214,1711743090566,-500.0,0.00053424,120]
[321009215,1711743090575,-500.0,0.00053424,120]
[321009216,1711743090584,-500.0,0.00053424,120]
[321009217,1711743090593,-278.63850614,0.00053424,120]
[321009218,1711743090602,-549.77,0.00053424,120]
[321009219,1711743090612,-500.0,0.00053424,120]
[321009220,1711743090621,-500.0,0.00053424,120]
[321009221,1711743090630,-260.80342294,0.00053424,120]
[321009222,1711743090640,-527.13020862,0.00053424,120]
[321009223,1711743090649,-500.0,0.00053424,120]
[321009224,1711743090660,-500.0,0.00053424,120]
[321009225,1711743090669,-500.0,0.00053424,120]
[321009226,1711743090678,-500.0,0.00053424,120]
[321009227,1711743090687,-500.0,0.00053424,120]
[321009228,1711743090696,-500.0,0.00053424,120]
[321009229,1711743090706,-500.0,0.00053424,120]
[321009230,1711743090715,-500.0,0.00053424,120]
[321009231,1711743090725,-500.0,0.00053424,120]
[321009232,1711743090734,-500.0,0.00053424,120]
[321009233,1711743090742,-875.16,0.00053424,120]
[321009234,1711743090751,-500.0,0.00053424,120]
[321009235,1711743090760,-500.0,0.00053424,120]
[321009236,1711743090769,-500.0,0.00053424,120]
[321009237,1711743090778,-500.0,0.00053424,120]
[321009238,1711743090787,-514.32,0.00053424,120]
[321009239,1711743090796,-500.0,0.00053424,120]
[321009240,1711743090805,-500.0,0.00053424,120]
[321009241,1711743090814,-500.0,0.00053424,120]
[321009242,1711743090823,-500.0,0.00053424,120]
[321009243,1711743090832,-248.45,0.00053424,120]
[321009244,1711743090841,-591.94,0.00053424,120]
[321009245,1711743090850,-500.0,0.00053424,120]
[321009246,1711743090859,-500.0,0.00053424,120]
[321009247,1711743090868,-500.0,0.00053424,120]
[321009248,1711743090877,-500.0,0.00053424,120]
[321009249,1711743090886,-500.0,0.00053424,120]
[321009250,1711743090895,-500.0,0.00053424,120]
[321009251,1711743090904,-378.38778353,0.00053424,120]
[321009252,1711743090913,-585.45,0.00053424,2]
[321009253,1711743090922,-500.0,0.00053424,120]
[321009254,1711743090931,-2237.67,0.00053424,120]
[321009255,1711743090941,-500.0,0.00053424,120]
[321009256,1711743090954,-583.33,0.00053424,120]
[321009257,1711743090963,-4471.83,0.00053424,120]
[321009258,1711743090972,-500.0,0.00053424,120]
[321009259,1711743090982,-1416.86,0.00053424,120]
[321009260,1711743090991,-500.0,0.00053424,120]
[321009261,1711743091000,-500.0,0.00053424,120]
[321009262,1711743091115,-566.01420755,0.00053424,120]
[321009263,1711743091134,-500.0,0.00053424,120]
[321009264,1711743091144,-557.16,0.00053424,120]
[321009265,1711743091153,-500.0,0.00053424,120]
[321009266,1711743091162,-762.04,0.00053424,120]
[321009267,1711743091170,-500.0,0.00053424,120]
[321009268,1711743091179,-2221.11,0.00053424,120]
[321009269,1711743091190,-211.22,0.00053424,120]
[321009270,1711743091200,-3766.78,0.00053424,120]
[321009271,1711743091209,-511.43,0.00053424,120]
[321009272,1711743091218,-2235.61,0.00053424,120]
[321009273,1711743091228,-780.71,0.00053424,120]
[321009274,1711743091237,-1178.74,0.00053424,120]
[321009275,1711743091245,-275.0,0.00053424,120]
[321009276,1711743091255,-556.61,0.00053424,120]
[321009277,1711743091264,-500.0,0.00053424,120]
[321009278,1711743091274,-500.0,0.00053424,120]
[321009279,1711743091283,-500.0,0.00053424,120]
[321009280,1711743091292,-540.44,0.00053424,120]
[321009281,1711743091301,-619.5,0.00053424,120]
[321009282,1711743091310,-500.0,0.00053424,120]
[321009283,1711743091320,-629.04,0.00053424,120]
[321009284,1711743091329,-2852.03,0.00053424,120]
[321009285,1711743091338,-3138.6,0.00053424,120]
[321009286,1711743091347,-8058.65,0.00053424,120]
[321009287,1711743091356,-403.80804112,0.00053424,120]
[321009288,1711743091365,-500.0,0.00053424,120]
[321009289,1711743091374,-646.56,0.00053424,120]
[321009290,1711743091383,-630.23,0.00053424,120]
[321009291,1711743091393,-2086.46,0.00053424,120]
[321009292,1711743091401,-756.48,0.00053424,120]
[321009293,1711743091410,-500.0,0.00053424,120]
[321009294,1711743091420,-500.0,0.00053424,120]
[321009295,1711743091429,-1381.85,0.00053424,120]
[321009296,1711743091437,-1786.25,0.00053424,120]
[321009297,1711743091446,-1037.49,0.00053424,120]
[321009298,1711743091456,-5491.84,0.00053424,120]
[321009299,1711743091465,-500.0,0.00053424,120]
[321009300,1711743091474,-500.0,0.00053424,120]
[321009301,1711743091483,-4044.9,0.00053424,120]
[321009302,1711743091492,-293.96404384,0.00053424,120]
[321009303,1711743091501,-500.0,0.00053424,120]
[321009304,1711743091510,-963.3,0.00053424,120]
[321009305,1711743091519,-500.0,0.00053424,120]
[321009306,1711743091528,-2228.41,0.00053424,120]
[321009307,1711743091537,-1266.86,0.00053424,120]
[321009308,1711743091546,-2742.97,0.00053424,120]
[321009309,1711743091555,-249.14074414,0.00053424,120]
[321009310,1711743091564,-1695.14,0.00053424,120]
[321009311,1711743091573,-1156.36,0.00053424,120]
[321009312,1711743091582,-500.0,0.00053424,120]
[321009313,1711743091591,-298.83908351,0.00053424,120]
[321009314,1711743091600,-3243.98,0.00053424,120]
[321009315,1711743091609,-500.0,0.00053424,120]
[321009316,1711743091618,-500.0,0.00053424,120]
[321009317,1711743091627,-3781.4,0.00053424,120]
[321009318,1711743091636,-1170.04,0.00053424,120]
[321009319,1711743091645,-996.14,0.00053424,120]
[321009320,1711743091654,-659.08,0.00053424,120]
[321009321,1711743091663,-500.0,0.00053424,120]
[321009322,1711743091672,-500.0,0.00053424,120]
[321009323,1711743091681,-500.0,0.00053424,7]
[321009324,1711743091689,-4977.0,0.00053424,120]
[321009325,1711743091699,-500.0,0.00053424,120]
[321009326,1711743091709,-261.07008141,0.00053424,120]
[321009327,1711743091718,-500.0,0.00053424,120]
[321009328,1711743091727,-500.0,0.00053424,120]
[321009329,1711743091736,-3890.35,0.00053424,120]
[321009330,1711743091745,-784.3,0.00053424,120]
[321009331,1711743091755,-500.0,0.00053424,120]
[321009332,1711743091765,-657.95,0.00053424,120]
[321009333,1711743091774,-500.0,0.00053424,120]
[321009334,1711743091784,-3045.62,0.00053424,120]
[321009335,1711743091793,-500.0,0.00053424,120]
[321009336,1711743091803,-500.0,0.00053424,120]
[321009337,1711743091812,-500.0,0.00053424,120]
[321009338,1711743091821,-500.0,0.00053424,120]
[321009339,1711743091830,-500.0,0.00053424,120]
[321009340,1711743091839,-500.0,0.00053424,120]
[321009341,1711743091848,-762.49,0.00053424,120]
[321009342,1711743091857,-713.8,0.00053424,120]
[321009343,1711743091866,-876.73,0.00053424,120]
[321009344,1711743091875,-500.0,0.00053424,120]
[321009345,1711743091884,-500.0,0.00053424,120]
[321009346,1711743091893,-649.35,0.00053424,120]
[321009347,1711743091902,-3322.87,0.00053424,120]
[321009348,1711743091911,-975.43,0.00053424,120]
[321009349,1711743091934,-500.0,0.00053424,120]
[321009350,1711743091956,-500.0,0.00053424,120]
[321009351,1711743091977,-1010.8,0.00053424,120]
[321009352,1711743091995,-500.0,0.00053424,120]
[321009353,1711743092012,-1101.95,0.00053424,120]
[321009354,1711743092030,-641.9,0.00053424,120]
[321009355,1711743092046,-500.0,0.00053424,120]
[321009356,1711743092067,-500.0,0.00053424,120]
[321009357,1711743092084,-5674.68,0.00053424,120]
[321009358,1711743092102,-500.0,0.00053424,120]
[321009359,1711743092123,-500.0,0.00053424,120]
[321009360,1711743092141,-500.0,0.00053424,120]
[321009361,1711743092154,-500.0,0.00053424,120]
[321009362,1711743092172,-1101.21,0.00053424,120]
[321009363,1711743092185,-1619.59,0.00053424,120]
[321009364,1711743092201,-500.0,0.00053424,120]
[321009365,1711743092218,-958.84,0.00053424,120]
[321009366,1711743092233,-500.0,0.00053424,120]
[321009367,1711743092249,-608.38,0.00053424,120]
[321009368,1711743092264,-1270.9,0.00053424,120]
[321009369,1711743092278,-500.0,0.00053424,120]
[321009370,1711743092293,-1001.79,0.00053424,120]
[321009371,1711743092308,-234.77375746,0.00053424,120]
[321009372,1711743092322,-704.57,0.00053424,120]
[321009373,1711743092336,-1109.94,0.00053424,120]
[321009374,1711743092351,-500.0,0.00053424,120]
[321009375,1711743092366,-500.0,0.00053424,120]
[321009376,1711743092381,-966.68,0.00053424,120]
[321009377,1711743092396,-500.0,0.00053424,120]
[321009378,1711743092412,-500.0,0.00053424,120]
[321009379,1711743092427,-763.79,0.00053424,120]
[321009380,1711743092441,-896.89,0.00053424,120]
[321009381,1711743092456,-863.63,0.00053424,120]
[321009382,1711743092472,-500.0,0.00053424,120]
[321009383,1711743092487,-1827.42,0.00053424,120]
[321009384,1711743092503,-1672.3,0.00053424,120]
[321009385,1711743092518,-500.0,0.00053424,120]
[321009386,1711743092532,-500.0,0.00053424,120]
[321009387,1711743092547,-2643.23351538,0.00053424,120]
[321009388,1711743093376,-1086.05648462,0.00053424,120]
[321009389,1711743093386,-3188.94,0.00053424,120]
[321009390,1711743093395,-500.0,0.00053424,120]
[321009391,1711743093404,-740.79,0.00053424,120]
[321009392,1711743093413,-1494.43,0.00053424,120]
[321009393,1711743093422,-561.30692587,0.00053424,120]
[321009394,1711743093431,-500.0,0.00053424,120]
[321009395,1711743093440,-2612.0,0.00053424,120]
[321009396,1711743093450,-7249.51,0.00053424,120]
[321009397,1711743093460,-500.0,0.00053424,120]
[321009398,1711743093470,-500.0,0.00053424,120]
[321009399,1711743093479,-843.2,0.00053424,120]
[321009400,1711743093488,-2680.51,0.00053424,120]
[321009401,1711743093497,-500.0,0.00053424,120]
[321009402,1711743093506,-4459.43,0.00053424,120]
[321009403,1711743093516,-500.0,0.00053424,120]
[321009404,1711743093526,-1947.08,0.00053424,120]
[321009405,1711743093536,-3624.86,0.00053424,120]
[321009406,1711743093545,-2027.87,0.00053424,120]
[321009407,1711743093554,-1617.65,0.00053424,120]
[321009408,1711743093563,-500.0,0.00053424,120]
[321009409,1711743093572,-1765.5,0.00053424,120]
[321009410,1711743093582,-1764.1,0.00053424,120]
[321009411,1711743093590,-500.0,0.00053424,120]
[321009412,1711743093599,-500.0,0.00053424,120]
[321009413,1711743093609,-957.9,0.00053424,120]
[321009414,1711743093618,-10351.89,0.00053424,120]
[321009415,1711743093626,-13296.96,0.00053424,120]
[321009416,1711743093636,-517.98,0.00053424,120]
[321009417,1711743093646,-1873.21,0.00053424,120]
[321009418,1711743093656,-504.78,0.00053424,120]
[321009419,1711743093665,-2418.2,0.00053424,120]
[321009420,1711743093674,-2461.01,0.00053424,120]
[321009421,1711743093683,-186.62073474,0.00053424,120]
[321009422,1711743093692,-2944.8,0.00053424,120]
[321009423,1711743093702,-500.0,0.00053424,120]
[321009424,1711743093712,-1607.86,0.00053424,120]
[321009425,1711743093721,-500.0,0.00053424,120]
[321009426,1711743093730,-1284.35,0.00053424,120]
[321009427,1711743093740,-500.0,0.00053424,120]
[321009428,1711743093749,-500.0,0.00053424,120]
[321009429,1711743093759,-3103.51,0.00053424,120]
[321009430,1711743093768,-500.0,0.00053424,80]
[321009431,1711743093777,-537.73419797,0.00053424,120]
[321009432,1711743093786,-500.0,0.00053424,120]
[321009433,1711743093795,-2940.12,0.00053424,120]
[321009434,1711743093805,-500.0,0.00053424,120]
[321009435,1711743093815,-4477.27,0.00053424,120]
[321009436,1711743093824,-500.0,0.00053424,120]
[321009437,1711743093833,-500.0,0.00053424,120]
[321009438,1711743093843,-1003.91,0.00053424,120]
[321009439,1711743093853,-782.17,0.00053424,120]
[321009440,1711743093862,-910.45,0.00053424,120]
[321009441,1711743093871,-2328.02,0.00053424,120]
[321009442,1711743093880,-500.0,0.00053424,120]
[321009443,1711743093892,-500.0,0.00053424,120]
[321009444,1711743093902,-608.2,0.00053424,120]
[321009445,1711743093911,-500.0,0.00053424,120]
[321009446,1711743093921,-1584.87,0.00053424,120]
[321009447,1711743093930,-594.05,0.00053424,120]
[321009448,1711743093939,-995.82,0.00053424,120]
[321009449,1711743093951,-500.0,0.00053424,120]
[321009450,1711743093965,-611.38,0.00053424,120]
[321009451,1711743093974,-500.0,0.00053424,120]
[321009452,1711743093984,-571.66,0.00053424,120]
[321009453,1711743093994,-1818.27,0.00053424,120]
[321009454,1711743094003,-4183.91,0.00053424,120]
[321009455,1711743094013,-500.0,0.00053424,120]
[321009456,1711743094022,-535.86915764,0.00053424,120]
[321009457,1711743094032,-4365.84,0.00053424,21]
[321009458,1711743094041,-500.0,0.00053424,120]
[321009459,1711743094051,-500.0,0.00053424,120]
[321009460,1711743094060,-500.0,0.00053424,120]
[321009461,1711743094070,-1348.38,0.00053424,120]
[321009462,1711743094079,-854.64,0.00053424,120]
[321009463,1711743094089,-1373.05,0.00053424,120]
[321009464,1711743094098,-1920.43,0.00053424,120]
[321009465,1711743094108,-548.39,0.00053424,120]
[321009466,1711743094118,-4841.11,0.00053424,120]
[321009467,1711743094129,-500.0,0.00053424,120]
[321009468,1711743094141,-500.0,0.00053424,120]
[321009469,1711743094150,-1532.21,0.00053424,120]
[321009470,1711743094160,-3978.71,0.00053424,120]
[321009471,1711743094171,-4048.81,0.00053424,120]
[321009472,1711743094181,-500.0,0.00053424,120]
[321009473,1711743094190,-500.0,0.00053424,60]
[321009474,1711743094199,-500.0,0.00053424,120]
[321009475,1711743094212,-518.98,0.00053424,120]
[321009476,1711743094221,-623.73,0.00053424,120]
[321009477,1711743094231,-10194.33,0.00053424,120]
[321009478,1711743094241,-817.33,0.00053424,120]
[321009479,1711743094250,-500.0,0.00053424,120]
[321009480,1711743094260,-3430.93,0.00053424,120]
[321009481,1711743094270,-500.0,0.00053424,120]
[321009482,1711743094279,-253.40437899,0.00053424,120]
[321009483,1711743094289,-500.0,0.00053424,2]
[321009484,1711743094300,-1097.14,0.00053424,120]
[321009485,1711743094310,-500.0,0.00053424,120]
[321009486,1711743094321,-1000.0,0.00053425,120]
[321009487,1711743094330,-151.0,0.00053425,120]
[321009488,1711743094340,-539.0,0.00053425,120]
[321009489,1711743094349,-501.84,0.00053429,2]
[321009490,1711743094358,-156.65046783,0.00053498,60]
[321009491,1711743094368,-1000.0,0.00053505,120]
[321009492,1711743094377,-4005.0,0.00053511,3]
[321009493,1711743094387,-40124.30435578,0.00053527,2]
[321009494,1711743094397,-152.37557808,0.00053581,60]
[321009495,1711743094407,-1000.0,0.00053586,120]
[321009496,1711743094417,-159.93084907,0.00053592,60]
[321009497,1711743094427,-150.0,0.00053599,14]
[321009498,1711743094437,-1915.38981548,0.000536,120]
[321009499,1711743094447,-4950.13,0.000536,7]
[321009500,1711743094458,-4950.13,0.000536,7]
[321009501,1711743094467,-4950.13,0.000536,7]
[321009502,1711743094476,-4950.13,0.000536,7]
[321009503,1711743094486,-4950.13,0.000536,7]
[321009504,1711743094495,-4950.13,0.000536,7]
[321009505,1711743094505,-4950.13,0.000536,7]
[321009506,1711743094514,-4950.13,0.000536,7]
[321009507,1711743094523,-4950.13,0.000536,7]
[321009508,1711743094532,-4950.13,0.000536,7]
[321009509,1711743094541,-4950.13,0.000536,7]
[321009510,1711743094550,-4950.13,0.000536,7]
[321009511,1711743094560,-4950.13,0.000536,7]
[321009512,1711743094569,-4950.13,0.000536,7]
[321009513,1711743094578,-4950.13,0.000536,7]
[321009514,1711743094587,-4950.13,0.000536,7]
[321009515,1711743094597,-4950.13,0.000536,7]
[321009516,1711743094606,-4950.13,0.000536,7]
[321009517,1711743094614,-4950.13,0.000536,7]
[321009518,1711743094624,-4950.13,0.000536,7]
[321009519,1711743094633,-152.3,0.000536,7]
[321009520,1711743094642,-152.3,0.000536,7]
[321009521,1711743094651,-152.3,0.000536,7]
[321009522,1711743094660,-152.3,0.000536,7]
[321009523,1711743094669,-152.3,0.000536,7]
[321009524,1711743094678,-152.3,0.000536,7]
[321009525,1711743094687,-152.3,0.000536,7]
[321009526,1711743094695,-152.3,0.000536,7]
[321009527,1711743094706,-152.3,0.000536,7]
[321009528,1711743094715,-152.3,0.000536,7]
[321009529,1711743094725,-152.3,0.000536,7]
[321009530,1711743094733,-152.3,0.000536,7]
[321009531,1711743094742,-152.3,0.000536,7]
[321009532,1711743094751,-152.3,0.000536,7]
[321009533,1711743094760,-152.3,0.000536,7]
[321009534,1711743094770,-152.3,0.000536,7]
[321009535,1711743094779,-152.3,0.000536,7]
[321009536,1711743094788,-152.3,0.000536,7]
[321009537,1711743094798,-152.3,0.000536,7]
[321009538,1711743094808,-152.3,0.000536,7]
[321009539,1711743094818,-152.3,0.000536,7]
[321009540,1711743094828,-152.3,0.000536,7]
[321009541,1711743094838,-152.3,0.000536,7]
[321009542,1711743094848,-152.3,0.000536,7]
[321009543,1711743094857,-150.0,0.00053643,120]
[321009544,1711743094866,-150.0,0.00053643,120]
[321009545,1711743094876,-1000.0,0.00053666,120]
[321009546,1711743094885,-500.0,0.00053698,120]
[321009547,1711743094894,-500.0,0.00053698,120]
[321009548,1711743094904,-500.0,0.00053698,120]
[321009549,1711743094913,-500.0,0.00053698,120]
[321009550,1711743094923,-367.48951008,0.00053698,120]
[321009551,1711743094932,-500.0,0.00053698,120]
[321009552,1711743094944,-500.0,0.00053698,120]
[321009553,1711743094956,-500.0,0.00053698,120]
[321009554,1711743094966,-500.0,0.00053698,120]
[321009555,1711743094976,-500.0,0.00053698,120]
[321009556,1711743094986,-500.0,0.00053698,120]
[321009557,1711743094996,-500.0,0.00053698,120]
[321009558,1711743095005,-500.0,0.00053698,120]
[321009559,1711743095015,-521.15659555,0.00053698,120]
[321009560,1711743095026,-500.0,0.00053698,120]
[321009561,1711743095036,-500.0,0.00053698,120]
[321009562,1711743095046,-500.0,0.00053698,120]
[321009563,1711743095057,-500.0,0.00053698,120]
[321009564,1711743095067,-500.0,0.00053698,120]
[321009565,1711743095077,-366.05,0.00053698,120]
[321009566,1711743095088,-500.0,0.00053698,120]
[321009567,1711743095098,-500.0,0.00053698,120]
[321009568,1711743095107,-299.628059,0.00053698,120]
[321009569,1711743095119,-500.0,0.00053698,120]
[321009570,1711743095129,-500.0,0.00053698,120]
[321009571,1711743095139,-489.80935012,0.00053698,120]
[321009572,1711743095149,-500.0,0.00053698,120]
[321009573,1711743095159,-500.0,0.00053698,120]
[321009574,1711743095169,-500.0,0.00053698,120]
[321009575,1711743095180,-574.07689473,0.00053698,120]
[321009576,1711743095190,-500.0,0.00053698,120]
[321009577,1711743095200,-500.0,0.00053698,120]
[321009578,1711743095211,-480.71,0.00053698,120]
[321009579,1711743095221,-500.0,0.00053698,120]
[321009580,1711743095232,-500.0,0.00053698,120]
[321009581,1711743095243,-500.0,0.00053698,120]
[321009582,1711743095254,-500.0,0.00053698,120]
[321009583,1711743095264,-500.0,0.00053698,120]
[321009584,1711743095274,-500.0,0.00053698,120]
[321009585,1711743095284,-500.0,0.00053698,120]
[321009586,1711743095294,-500.0,0.00053698,120]
[321009587,1711743095443,-500.0,0.00053698,120]
[321009588,1711743095455,-197.74,0.00053698,120]
[321009589,1711743095465,-500.0,0.00053698,120]
[321009590,1711743095475,-500.0,0.00053698,120]
[321009591,1711743095485,-500.0,0.00053698,120]
[321009592,1711743095495,-631.54,0.00053698,120]
[321009593,1711743095505,-635.68,0.00053698,120]
[321009594,1711743095515,-603.58,0.00053698,120]
[321009595,1711743095525,-500.0,0.00053698,120]
[321009596,1711743095535,-466.51053852,0.00053698,120]
[321009597,1711743095546,-500.0,0.00053698,120]
[321009598,1711743095556,-500.0,0.00053698,120]
[321009599,1711743095566,-500.0,0.00053698,120]
[321009600,1711743095575,-500.0,0.00053698,120]
[321009601,1711743095585,-500.0,0.00053698,120]
[321009602,1711743095595,-500.0,0.00053698,120]
[321009603,1711743095605,-500.0,0.00053698,120]
[321009604,1711743095614,-500.0,0.00053698,120]
[321009605,1711743095624,-500.0,0.00053698,120]
[321009606,1711743095634,-500.0,0.00053698,120]
[321009607,1711743095644,-500.0,0.00053698,120]
[321009608,1711743095654,-500.0,0.00053698,120]
[321009609,1711743095664,-500.0,0.00053698,120]
[321009610,1711743095674,-500.0,0.00053698,120]
[321009611,1711743095684,-500.36510443,0.00053698,120]
[321009612,1711743095694,-559.31,0.00053698,120]
[321009613,1711743095706,-500.0,0.00053698,120]
[321009614,1711743095716,-500.0,0.00053698,120]
[321009615,1711743095727,-500.0,0.00053698,120]
[321009616,1711743095737,-500.0,0.00053698,120]
[321009617,1711743095747,-500.0,0.00053698,120]
[321009618,1711743095757,-500.0,0.00053698,120]
[321009619,1711743095766,-332.18,0.00053698,120]
[321009620,1711743095776,-500.0,0.00053698,120]
[321009621,1711743095786,-500.0,0.00053698,120]
[321009622,1711743095796,-500.0,0.00053698,120]
[321009623,1711743095807,-500.0,0.00053698,120]
[321009624,1711743095816,-500.0,0.00053698,120]
[321009625,1711743095826,-500.0,0.00053698,120]
[321009626,1711743095837,-294.60839214,0.00053698,120]
[321009627,1711743095848,-500.0,0.00053698,120]
[321009628,1711743095858,-500.0,0.00053698,120]
[321009629,1711743095869,-500.0,0.00053698,120]
[321009630,1711743095880,-500.0,0.00053698,120]
[321009631,1711743095890,-500.0,0.00053698,120]
[321009632,1711743095900,-500.0,0.00053698,120]
[321009633,1711743095910,-500.0,0.00053698,120]
[321009634,1711743095920,-500.0,0.00053698,120]
[321009635,1711743095931,-500.0,0.00053698,120]
[321009636,1711743095942,-627.1,0.00053698,120]
[321009637,1711743095957,-500.0,0.00053698,120]
[321009638,1711743095968,-500.0,0.00053698,120]
[321009639,1711743095979,-500.0,0.00053698,120]
[321009640,1711743095990,-500.0,0.00053698,120]
[321009641,1711743096000,-500.0,0.00053698,120]
[321009642,1711743096010,-471.59,0.00053698,120]
[321009643,1711743096021,-284.67,0.00053698,120]
[321009644,1711743096031,-500.0,0.00053698,120]
[321009645,1711743096042,-500.0,0.00053698,120]